fUST/lending_fUST_20250729
["ID","MTS","AMOUNT","RATE_DAILY","PERIOD"]
[375779104,1753743040997,-460.0,0.00019452,2]
[375779106,1753743041007,-460.0,0.00019452,2]
[375779108,1753743041018,-460.0,0.00019452,2]
[375779110,1753743041028,-460.0,0.00019452,2]
[375779112,1753743041037,-460.0,0.00019452,2]
[375779114,1753743041046,-460.0,0.00019452,2]
[375779116,1753743041055,-460.0,0.00019452,2]
[375779118,1753743041065,-460.0,0.00019452,2]
[375779120,1753743041075,-323.89066846,0.00019452,2]
[375779131,1753743041182,-136.10933154,0.00019452,2]
[375779133,1753743041192,-157.89066646,0.00019452,2]
[375779135,1753743041203,-302.10933354,0.00019452,2]
[375779137,1753743041214,-460.0,0.00019452,2]
[375779139,1753743041224,-841.79,0.00019452,2]
[375779141,1753743041233,-460.0,0.00019452,2]
[375779143,1753743041242,-460.0,0.00019452,2]
[375779145,1753743041252,-481.47,0.00019452,2]
[375779147,1753743041261,-460.0,0.00019452,2]
[375779149,1753743041273,-460.0,0.00019452,2]
[375779151,1753743041282,-460.0,0.00019452,2]
[375779153,1753743041292,-460.0,0.00019452,2]
[375779155,1753743041302,-460.0,0.00019452,2]
[375779157,1753743041311,-460.0,0.00019452,2]
[375779159,1753743041321,-460.0,0.00019452,2]
[375779161,1753743041330,-460.0,0.00019452,2]
[375779163,1753743041340,-460.0,0.00019452,2]
[375779165,1753743041350,-460.0,0.00019452,2]
[375779167,1753743041359,-460.0,0.00019452,2]
[375779169,1753743041368,-460.0,0.00019452,2]
[375779171,1753743041378,-460.0,0.00019452,2]
[375779173,1753743041387,-460.0,0.00019452,2]
[375779175,1753743041397,-578.97,0.00019452,2]
[375779177,1753743041407,-460.0,0.00019452,2]
[375779178,1753743041416,-460.0,0.00019452,2]
[375779180,1753743041426,-460.0,0.00019452,2]
[375779182,1753743041436,-460.0,0.00019452,2]
[375779184,1753743041445,-460.0,0.00019452,2]
[375779186,1753743041455,-460.0,0.00019452,2]
[375779188,1753743041464,-460.0,0.00019452,2]
[375779190,1753743041474,-460.0,0.00019452,2]
[375779192,1753743041484,-460.0,0.00019452,2]
[375779194,1753743041494,-460.0,0.00019452,2]
[375779195,1753743041503,-460.0,0.00019452,2]
[375779196,1753743041513,-600.33,0.00019452,2]
[375779197,1753743041524,-647.16,0.00019452,2]
[375779198,1753743041534,-460.0,0.00019452,2]
[375779199,1753743041544,-1069.8,0.00019452,2]
[375779200,1753743041553,-460.0,0.00019452,2]
[375779201,1753743041563,-460.0,0.00019452,2]
[375779202,1753743041572,-460.0,0.00019452,2]
[375779203,1753743041582,-460.0,0.00019452,2]
[375779204,1753743041592,-460.0,0.00019452,2]
[375779205,1753743041601,-460.0,0.00019452,2]
[375779206,1753743041611,-2681.18,0.00019452,2]
[375779207,1753743041621,-460.0,0.00019452,2]
[375779208,1753743041631,-460.0,0.00019452,2]
[375779209,1753743041640,-460.0,0.00019452,2]
[375779210,1753743041649,-460.0,0.00019452,2]
[375779211,1753743041658,-460.0,0.00019452,2]
[375779212,1753743041667,-460.0,0.00019452,2]
[375779213,1753743041677,-200.0,0.00019454,15]
[375779214,1753743041687,-200.0,0.00019454,15]
[375779215,1753743041696,-200.0,0.00019454,15]
[375779216,1753743041705,-200.0,0.00019454,15]
[375779217,1753743041715,-500.35759823,0.00019473,2]
[375779218,1753743041724,-500.0,0.00019473,2]
[375779219,1753743041733,-2080.47519736,0.00019626,2]
[375779220,1753743041742,-526.44698955,0.00019626,2]
[375779221,1753743041752,-966.32562151,0.00019705,2]
[375779222,1753743041762,-1000.0,0.00019721,2]
[375779223,1753743041773,-500.0,0.00019721,2]
[375779224,1753743041783,-500.0,0.00019721,2]
[375779225,1753743041793,-1000.0,0.00019721,2]
[375779226,1753743041802,-632.89791953,0.00019721,2]
[375779227,1753743041811,-1000.0,0.00019721,2]
[375779228,1753743041821,-460.0,0.00019726,2]
[375779229,1753743041832,-999.11,0.00019726,2]
[375779231,1753743041842,-460.0,0.00019726,2]
[375779233,1753743041851,-460.0,0.00019726,2]
[375779235,1753743041862,-460.0,0.00019726,2]
[375779237,1753743041871,-460.0,0.00019726,2]
[375779239,1753743041881,-264.41,0.00019726,2]
[375779241,1753743041891,-460.0,0.00019726,2]
[375779243,1753743041901,-460.0,0.00019726,2]
[375779245,1753743041911,-154.64,0.00019726,2]
[375779247,1753743041920,-460.0,0.00019726,2]
[375779249,1753743041929,-460.0,0.00019726,2]
[375779251,1753743041939,-460.0,0.00019726,2]
[375779253,1753743041948,-460.0,0.00019726,2]
[375779255,1753743041957,-460.0,0.00019726,2]
[375779256,1753743041966,-460.0,0.00019726,2]
[375779258,1753743041975,-436.37538329,0.00019726,2]
[375779260,1753743041985,-460.0,0.00019726,2]
[375779262,1753743041995,-460.0,0.00019726,2]
[375779264,1753743042004,-460.0,0.00019726,2]
[375779266,1753743042014,-358.27,0.00019726,2]
[375779268,1753743042026,-468.69,0.00019726,2]
[375779270,1753743042035,-460.0,0.00019726,2]
[375779272,1753743042044,-460.0,0.00019726,2]
[375779274,1753743042054,-460.0,0.00019726,2]
[375779276,1753743042063,-460.0,0.00019726,2]
[375779278,1753743042074,-460.0,0.00019726,2]
[375779280,1753743042084,-460.0,0.00019726,2]
[375779282,1753743042094,-598.76,0.00019726,2]
[375779284,1753743042104,-460.0,0.00019726,2]
[375779286,1753743042116,-460.0,0.00019726,2]
[375779288,1753743042125,-460.98261504,0.00019726,2]
[375779290,1753743042134,-460.0,0.00019726,2]
[375779292,1753743042145,-460.0,0.00019726,2]
[375779294,1753743042154,-460.0,0.00019726,2]
[375779296,1753743042164,-536.83,0.00019726,2]
[375779298,1753743042174,-460.0,0.00019726,2]
[375779300,1753743042184,-460.0,0.00019726,2]
[375779302,1753743042194,-460.0,0.00019726,2]
[375779304,1753743042203,-671.35,0.00019726,2]
[375779306,1753743042212,-460.0,0.00019726,2]
[375779308,1753743042222,-460.0,0.00019726,2]
[375779310,1753743042232,-460.0,0.00019726,2]
[375779312,1753743042241,-460.0,0.00019726,2]
[375779314,1753743042251,-460.0,0.00019726,2]
[375779316,1753743042260,-460.0,0.00019726,2]
[375779318,1753743042269,-460.0,0.00019726,2]
[375779319,1753743042279,-460.0,0.00019726,2]
[375779321,1753743042288,-460.0,0.00019726,2]
[375779323,1753743042298,-460.0,0.00019726,2]
[375779325,1753743042307,-460.0,0.00019726,2]
[375779327,1753743042316,-841.79,0.00019726,2]
[375779329,1753743042326,-460.0,0.00019726,2]
[375779331,1753743042337,-460.0,0.00019726,2]
[375779333,1753743042346,-460.0,0.00019726,2]
[375779335,1753743042356,-460.0,0.00019726,2]
[375779337,1753743042366,-460.0,0.00019726,2]
[375779339,1753743042375,-460.0,0.00019726,2]
[375779341,1753743042386,-600.92,0.00019726,2]
[375779343,1753743042395,-460.0,0.00019726,2]
[375779345,1753743042405,-460.0,0.00019726,2]
[375779347,1753743042414,-460.0,0.00019726,2]
[375779349,1753743042424,-460.0,0.00019726,2]
[375779352,1753743042435,-460.0,0.00019726,2]
[375779355,1753743042444,-460.0,0.00019726,2]
[375779358,1753743042453,-159.44207031,0.00019726,2]
[375779361,1753743042467,-300.55792969,0.00019726,2]
[375779364,1753743042477,-460.0,0.00019726,2]
[375779367,1753743042486,-460.0,0.00019726,2]
[375779370,1753743042495,-460.0,0.00019726,2]
[375779372,1753743042505,-460.0,0.00019726,2]
[375779375,1753743042514,-460.0,0.00019726,2]
[375779377,1753743042525,-164.62817286,0.00019726,2]
[375779380,1753743042538,-295.37182714,0.00019726,2]
[375779384,1753743042548,-460.0,0.00019726,2]
[375779387,1753743042557,-460.0,0.00019726,2]
[375779390,1753743042566,-460.0,0.00019726,2]
[375779392,1753743042575,-460.0,0.00019726,2]
[375779394,1753743042585,-460.0,0.00019726,2]
[375779396,1753743042594,-562.05360326,0.00019726,2]
[375779398,1753743042607,-38.27639674,0.00019726,2]
[375779400,1753743042616,-647.16,0.00019726,2]
[375779402,1753743042625,-460.0,0.00019726,2]
[375779404,1753743042634,-205.67812438,0.00019726,2]
[375779406,1753743042645,-864.12187562,0.00019726,2]
[375779408,1753743042655,-460.0,0.00019726,2]
[375779423,1753743042798,-460.0,0.00019726,2]
[375779425,1753743042808,-400.98353135,0.00019726,2]
[375779427,1753743042821,-59.01646865,0.00019726,2]
[375779429,1753743042830,-460.0,0.00019726,2]
[375779431,1753743042840,-2.29682935,0.00019726,2]
[375779434,1753743042852,-457.70317065,0.00019726,2]
[375779436,1753743042861,-714.19071289,0.00019726,2]
[375779438,1753743042872,-1966.98928711,0.00019726,2]
[375779440,1753743042881,-460.0,0.00019726,2]
[375779442,1753743042892,-460.0,0.00019726,2]
[375779444,1753743042901,-460.0,0.00019726,2]
[375779446,1753743042910,-460.0,0.00019726,2]
[375779447,1753743042920,-460.0,0.00019726,2]
[375779449,1753743042929,-460.0,0.00019726,2]
[375779451,1753743042939,-999.11,0.0002,2]
[375779453,1753743042948,-460.0,0.0002,2]
[375779455,1753743042958,-460.0,0.0002,2]
[375779457,1753743042967,-460.0,0.0002,2]
[375779459,1753743042976,-460.0,0.0002,2]
[375779461,1753743042986,-468.69,0.0002,2]
[375779463,1753743042996,-460.0,0.0002,2]
[375779465,1753743043005,-460.0,0.0002,2]
[375779467,1753743043015,-460.0,0.0002,2]
[375779469,1753743043026,-551.85639474,0.0002,2]
[375779471,1753743043035,-460.0,0.0002,2]
[375779473,1753743043044,-460.0,0.0002,2]
[375779475,1753743043054,-536.83,0.0002,2]
[375779477,1753743043063,-460.0,0.0002,2]
[375779479,1753743043072,-460.0,0.0002,2]
[375779481,1753743043082,-671.35,0.0002,2]
[375779483,1753743043092,-460.0,0.0002,2]
[375779485,1753743043102,-460.0,0.0002,2]
[375779487,1753743043115,-460.0,0.0002,2]
[375779489,1753743043124,-534.56,0.0002,2]
[375779491,1753743043133,-460.0,0.0002,2]
[375779493,1753743043142,-460.0,0.0002,2]
[375779495,1753743043152,-460.0,0.0002,2]
[375779497,1753743043161,-841.79,0.0002,2]
[375779499,1753743043171,-460.0,0.0002,2]
[375779501,1753743043180,-460.0,0.0002,2]
[375779503,1753743043190,-460.0,0.0002,2]
[375779505,1753743043199,-460.0,0.0002,2]
[375779507,1753743043208,-460.0,0.0002,2]
[375779508,1753743043217,-460.0,0.0002,2]
[375779510,1753743043227,-460.0,0.0002,2]
[375779512,1753743043237,-460.0,0.0002,2]
[375779514,1753743043246,-460.0,0.0002,2]
[375779516,1753743043255,-460.0,0.0002,2]
[375779518,1753743043264,-460.0,0.0002,2]
[375779520,1753743043274,-460.0,0.0002,2]
[375779522,1753743043283,-460.0,0.0002,2]
[375779524,1753743043293,-460.0,0.0002,2]
[375779526,1753743043302,-460.0,0.0002,2]
[375779528,1753743043311,-460.0,0.0002,2]
[375779530,1753743043321,-460.0,0.0002,2]
[375779532,1753743043331,-425.77740533,0.0002,2]
[375779534,1753743043340,-460.0,0.0002,2]
[375779536,1753743043349,-460.0,0.0002,2]
[375779538,1753743043359,-600.33,0.0002,2]
[375779540,1753743043368,-647.16,0.0002,2]
[375779542,1753743043378,-460.0,0.0002,2]
[375779544,1753743043388,-1069.8,0.0002,2]
[375779546,1753743043398,-460.0,0.0002,2]
[375779548,1753743043407,-460.0,0.0002,2]
[375779550,1753743043417,-460.0,0.0002,2]
[375779552,1753743043426,-2681.18,0.0002,2]
[375779554,1753743043436,-460.0,0.0002,2]
[375779556,1753743043445,-460.0,0.0002,2]
[375779558,1753743043456,-460.0,0.0002,2]
[375779560,1753743043465,-460.0,0.0002,2]
[375779562,1753743043474,-270.4618597,0.0002002,2]
[375779564,1753743043485,-500.0,0.00020021,2]
[375779566,1753743043494,-500.0,0.00020047,2]
[375779568,1753743043505,-500.25195193,0.00020047,2]
[375779570,1753743043515,-500.0,0.000201,2]
[375779572,1753743043525,-500.0,0.000201,2]
[375779574,1753743043535,-500.0,0.000201,2]
[375779576,1753743043544,-500.0,0.000201,2]
[375779578,1753743043554,-500.0,0.000201,2]
[375779580,1753743043564,-500.0,0.000201,2]
[375779582,1753743043573,-500.0,0.000201,2]
[375779584,1753743043582,-500.0,0.000201,2]
[375779586,1753743043592,-500.0,0.000201,2]
[375779588,1753743043602,-500.0,0.000201,2]
[375779590,1753743043611,-500.0,0.000201,2]
[375779592,1753743043620,-500.0,0.000201,2]
[375779594,1753743043631,-235.978,0.00020187,2]
[375779596,1753743043640,-500.0,0.00020207,2]
[375779598,1753743043650,-500.0,0.00020207,2]
[375779600,1753743043659,-1500.0,0.00020268,2]
[375779602,1753743043668,-999.11,0.00020273,2]
[375779604,1753743043678,-460.0,0.00020273,2]
[375779606,1753743043688,-268.83,0.00020273,2]
[375779608,1753743043698,-460.0,0.00020273,2]
[375779610,1753743043708,-468.69,0.00020273,2]
[375779612,1753743043718,-460.0,0.00020273,2]
[375779614,1753743043727,-460.0,0.00020273,2]
[375779616,1753743043736,-460.0,0.00020273,2]
[375779618,1753743043746,-460.0,0.00020273,2]
[375779620,1753743043755,-460.0,0.00020273,2]
[375779622,1753743043765,-536.83,0.00020273,2]
[375779623,1753743043775,-460.0,0.00020273,2]
[375779625,1753743043785,-460.0,0.00020273,2]
[375779627,1753743043795,-671.35,0.00020273,2]
[375779629,1753743043804,-460.0,0.00020273,2]
[375779631,1753743043814,-460.0,0.00020273,2]
[375779633,1753743043823,-460.0,0.00020273,2]
[375779635,1753743043833,-460.0,0.00020273,2]
[375779637,1753743043842,-460.0,0.00020273,2]
[375779639,1753743043852,-460.0,0.00020273,2]
[375779641,1753743043861,-841.79,0.00020273,2]
[375779643,1753743043871,-460.0,0.00020273,2]
[375779645,1753743043880,-460.0,0.00020273,2]
[375779647,1753743043889,-460.0,0.00020273,2]
[375779649,1753743043899,-460.0,0.00020273,2]
[375779651,1753743043909,-460.0,0.00020273,2]
[375779653,1753743043918,-460.0,0.00020273,2]
[375779655,1753743043927,-460.0,0.00020273,2]
[375779657,1753743043937,-460.0,0.00020273,2]
[375779658,1753743043946,-460.0,0.00020273,2]
[375779660,1753743043956,-460.0,0.00020273,2]
[375779662,1753743043966,-460.0,0.00020273,2]
[375779664,1753743043975,-460.0,0.00020273,2]
[375779666,1753743043985,-460.0,0.00020273,2]
[375779668,1753743043994,-460.0,0.00020273,2]
[375779670,1753743044003,-460.0,0.00020273,2]
[375779672,1753743044013,-460.0,0.00020273,2]
[375779674,1753743044023,-460.0,0.00020273,2]
[375779676,1753743044032,-600.33,0.00020273,2]
[375779678,1753743044042,-647.16,0.00020273,2]
[375779680,1753743044051,-460.0,0.00020273,2]
[375779682,1753743044061,-460.0,0.00020273,2]
[375779684,1753743044070,-1069.8,0.00020273,2]
[375779686,1753743044080,-460.0,0.00020273,2]
[375779688,1753743044090,-460.0,0.00020273,2]
[375779690,1753743044100,-2681.18,0.00020273,2]
[375779692,1753743044113,-460.0,0.00020273,2]
[375779694,1753743044122,-460.0,0.00020273,2]
[375779696,1753743044132,-460.0,0.00020273,2]
[375779698,1753743044142,-460.0,0.00020273,2]
[375779700,1753743044151,-500.0,0.00020308,2]
[375779702,1753743044161,-500.0,0.00020308,2]
[375779704,1753743044171,-173.72,0.00020378,2]
[375779706,1753743044182,-2495.26,0.00020538,3]
[375779708,1753743044191,-999.11,0.00020547,2]
[375779710,1753743044200,-460.0,0.00020547,2]
[375779712,1753743044210,-460.0,0.00020547,2]
[375779715,1753743044219,-468.69,0.00020547,2]
[375779717,1753743044228,-259.41,0.00020547,2]
[375779719,1753743044238,-460.0,0.00020547,2]
[375779721,1753743044247,-460.0,0.00020547,2]
[375779723,1753743044256,-460.0,0.00020547,2]
[375779725,1753743044266,-536.83,0.00020547,2]
[375779727,1753743044277,-460.0,0.00020547,2]
[375779729,1753743044287,-671.35,0.00020547,2]
[375779731,1753743044297,-460.0,0.00020547,2]
[375779732,1753743044306,-501.89,0.00020547,2]
[375779733,1753743044316,-460.0,0.00020547,2]
[375779734,1753743044325,-445.12,0.00020547,2]
[375779735,1753743044335,-460.0,0.00020547,2]
[375779736,1753743044344,-841.79,0.00020547,2]
[375779737,1753743044354,-460.0,0.00020547,2]
[375779738,1753743044364,-460.0,0.00020547,2]
[375779739,1753743044375,-460.0,0.00020547,2]
[375779740,1753743044387,-460.0,0.00020547,2]
[375779741,1753743044396,-460.0,0.00020547,2]
[375779742,1753743044406,-460.0,0.00020547,2]
[375779744,1753743044415,-460.0,0.00020547,2]
[375779746,1753743044425,-460.0,0.00020547,2]
[375779748,1753743044434,-460.0,0.00020547,2]
[375779750,1753743044443,-460.0,0.00020547,2]
[375779752,1753743044453,-460.0,0.00020547,2]
[375779754,1753743044463,-460.0,0.00020547,2]
[375779756,1753743044472,-460.0,0.00020547,2]
[375779758,1753743044482,-460.0,0.00020547,2]
[375779760,1753743044492,-460.0,0.00020547,2]
[375779762,1753743044502,-600.33,0.00020547,2]
[375779764,1753743044511,-647.16,0.00020547,2]
[375779766,1753743044522,-460.0,0.00020547,2]
[375779768,1753743044532,-460.0,0.00020547,2]
[375779770,1753743044542,-1069.8,0.00020547,2]
[375779772,1753743044551,-460.0,0.00020547,2]
[375779774,1753743044561,-460.0,0.00020547,2]
[375779776,1753743044571,-2681.18,0.00020547,2]
[375779778,1753743044580,-460.0,0.00020547,2]
[375779780,1753743044590,-460.0,0.00020547,2]
[375779782,1753743044599,-460.0,0.00020547,2]
[375779784,1753743044609,-500.0,0.00020644,2]
[375779785,1753743044618,-1000.0,0.00020648,2]
[375779787,1753743044627,-1003.59439869,0.00020648,2]
[375779789,1753743044637,-1000.0,0.00020648,2]
[375779791,1753743044646,-1000.0,0.00020648,2]
[375779793,1753743044656,-1000.0,0.00020648,2]
[375779795,1753743044665,-1000.0,0.00020755,2]
[375779797,1753743044675,-2000.0,0.00020816,2]
[375779799,1753743044684,-999.11,0.00020821,2]
[375779801,1753743044693,-460.0,0.00020821,2]
[375779803,1753743044702,-468.69,0.00020821,2]
[375779805,1753743044712,-460.0,0.00020821,2]
[375779807,1753743044721,-460.0,0.00020821,2]
[375779809,1753743044731,-460.0,0.00020821,2]
[375779811,1753743044740,-536.83,0.00020821,2]
[375779813,1753743044750,-460.0,0.00020821,2]
[375779815,1753743044759,-671.35,0.00020821,2]
[375779817,1753743044771,-460.0,0.00020821,2]
[375779819,1753743044781,-460.0,0.00020821,2]
[375779821,1753743044790,-841.79,0.00020821,2]
[375779823,1753743044799,-460.0,0.00020821,2]
[375779825,1753743044808,-460.0,0.00020821,2]
[375779827,1753743044818,-460.0,0.00020821,2]
[375779829,1753743044827,-460.0,0.00020821,2]
[375779831,1753743044837,-460.0,0.00020821,2]
[375779833,1753743044846,-460.0,0.00020821,2]
[375779835,1753743044856,-460.0,0.00020821,2]
[375779837,1753743044866,-460.0,0.00020821,2]
[375779839,1753743044876,-460.0,0.00020821,2]
[375779841,1753743044886,-460.0,0.00020821,2]
[375779843,1753743044896,-460.0,0.00020821,2]
[375779845,1753743044906,-460.0,0.00020821,2]
[375779847,1753743044915,-460.0,0.00020821,2]
[375779849,1753743044925,-460.0,0.00020821,2]
[375779851,1753743044935,-460.0,0.00020821,2]
[375779853,1753743044946,-600.33,0.00020821,2]
[375779855,1753743044956,-647.16,0.00020821,2]
[375779857,1753743044966,-460.0,0.00020821,2]
[375779859,1753743044976,-460.0,0.00020821,2]
[375779861,1753743044986,-1069.8,0.00020821,2]
[375779863,1753743044995,-460.0,0.00020821,2]
[375779865,1753743045005,-460.0,0.00020821,2]
[375779867,1753743045015,-2681.18,0.00020821,2]
[375779869,1753743045026,-460.0,0.00020821,2]
[375779871,1753743045036,-460.0,0.00020821,2]
[375779873,1753743045046,-820.08170601,0.00020876,2]
[375779875,1753743045055,-840.90880427,0.00020876,2]
[375779877,1753743045064,-12634.73134317,0.00020876,2]
[375779879,1753743045074,-160.0,0.00020876,2]
[375779881,1753743045084,-216.06083566,0.00020876,2]
[375779883,1753743045095,-160.0,0.00020876,2]
[375779885,1753743045107,-454.6043428,0.00020876,2]
[375779887,1753743045116,-214.87999826,0.00020876,2]
[375779889,1753743045126,-526.58819812,0.00020876,2]
[375779891,1753743045136,-160.0,0.00020876,2]
[375779893,1753743045146,-160.0,0.00020876,2]
[375779895,1753743045156,-312.16666667,0.00020876,2]
[375779897,1753743045166,-160.0,0.00020876,2]
[375779899,1753743045176,-231.34820253,0.00020876,2]
[375779901,1753743045187,-480.0,0.00020888,2]
[375779903,1753743045197,-500.38,0.000209,2]
[375779905,1753743045207,-526.44698955,0.0002092,2]
[375779907,1753743045216,-503.55156825,0.00020986,2]
[375779909,1753743045226,-320.0,0.00021029,2]
[375779911,1753743045235,-270.4618597,0.00021062,2]
[375779913,1753743045245,-999.11,0.00021095,2]
[375779915,1753743045254,-460.0,0.00021095,2]
[375779917,1753743045264,-468.69,0.00021095,2]
[375779918,1753743045273,-460.0,0.00021095,2]
[375779920,1753743045283,-460.0,0.00021095,2]
[375779922,1753743045293,-536.83,0.00021095,2]
[375779924,1753743045303,-671.35,0.00021095,2]
[375779926,1753743045312,-460.0,0.00021095,2]
[375779928,1753743045321,-460.0,0.00021095,2]
[375779930,1753743045331,-841.79,0.00021095,2]
[375779933,1753743045341,-511.37,0.00021095,2]
[375779935,1753743045351,-591.96442385,0.00021095,2]
[375779937,1753743045362,-460.0,0.00021095,2]
[375779938,1753743045373,-460.0,0.00021095,2]
[375779941,1753743045382,-460.0,0.00021095,2]
[375779943,1753743045392,-460.0,0.00021095,2]
[375779945,1753743045401,-460.0,0.00021095,2]
[375779947,1753743045412,-460.0,0.00021095,2]
[375779949,1753743045423,-460.0,0.00021095,2]
[375779951,1753743045432,-460.0,0.00021095,2]
[375779953,1753743045442,-460.0,0.00021095,2]
[375779955,1753743045451,-460.0,0.00021095,2]
[375779957,1753743045461,-460.0,0.00021095,2]
[375779959,1753743045470,-460.0,0.00021095,2]
[375779961,1753743045481,-600.33,0.00021095,2]
[375779963,1753743045490,-647.16,0.00021095,2]
[375779965,1753743045501,-542.27179746,0.00021095,2]
[375779967,1753743045510,-460.0,0.00021095,2]
[375779969,1753743045519,-1069.8,0.00021095,2]
[375779971,1753743045529,-460.0,0.00021095,2]
[375779972,1753743045539,-460.0,0.00021095,2]
[375779974,1753743045548,-2681.18,0.00021095,2]
[375779976,1753743045558,-460.0,0.00021095,2]
[375779978,1753743045568,-460.0,0.00021095,2]
[375779981,1753743045578,-500.0,0.000211,2]
[375779982,1753743045587,-500.0,0.000211,2]
[375779984,1753743045597,-500.0,0.000211,2]
[375779986,1753743045607,-500.0,0.000211,2]
[375779989,1753743045616,-1500.0,0.00021196,2]
[375779991,1753743045626,-1500.0,0.00021196,2]
[375779993,1753743045635,-1500.0,0.00021196,2]
[375779994,1753743045645,-596.0,0.00021277,4]
[375779996,1753743045654,-500.0,0.00021283,2]
[375779998,1753743045664,-500.0,0.00021283,2]
[375780000,1753743045673,-500.0,0.00021283,2]
[375780002,1753743045683,-500.0,0.00021283,2]
[375780004,1753743045692,-500.0,0.00021283,2]
[375780006,1753743045702,-160.11934557,0.00021283,2]
[375780008,1753743045712,-510.63255838,0.00021303,2]
[375780011,1753743045722,-200.0,0.00021361,15]
[375780013,1753743045732,-200.0,0.00021361,15]
[375780014,1753743045741,-200.0,0.00021361,15]
[375780017,1753743045752,-200.0,0.00021361,15]
[375780019,1753743045762,-320.0,0.00021361,15]
[375780021,1753743045773,-209.14776071,0.00021364,2]
[375780023,1753743045782,-999.11,0.00021369,2]
[375780025,1753743045792,-460.0,0.00021369,2]
[375780026,1753743045801,-468.69,0.00021369,2]
[375780028,1753743045811,-460.0,0.00021369,2]
[375780030,1753743045821,-460.0,0.00021369,2]
[375780032,1753743045831,-536.83,0.00021369,2]
[375780034,1753743045840,-671.35,0.00021369,2]
[375780036,1753743045851,-460.0,0.00021369,2]
[375780038,1753743045860,-841.79,0.00021369,2]
[375780040,1753743045870,-513.82,0.00021369,2]
[375780042,1753743045881,-460.0,0.00021369,2]
[375780044,1753743045891,-460.0,0.00021369,2]
[375780046,1753743045902,-460.0,0.00021369,2]
[375780048,1753743045912,-460.0,0.00021369,2]
[375780050,1753743045922,-460.0,0.00021369,2]
[375780052,1753743045931,-460.0,0.00021369,2]
[375780054,1753743045942,-460.0,0.00021369,2]
[375780056,1753743045954,-460.0,0.00021369,2]
[375780058,1753743045964,-460.0,0.00021369,2]
[375780060,1753743045973,-460.0,0.00021369,2]
[375780062,1753743045983,-460.0,0.00021369,2]
[375780064,1753743045993,-600.33,0.00021369,2]
[375780066,1753743046004,-647.16,0.00021369,2]
[375780068,1753743046013,-460.0,0.00021369,2]
[375780082,1753743046149,-1069.8,0.00021369,2]
[375780085,1753743046160,-460.0,0.00021369,2]
[375780087,1753743046170,-460.0,0.00021369,2]
[375780089,1753743046181,-2681.18,0.00021369,2]
[375780091,1753743046191,-460.0,0.00021369,2]
[375780093,1753743046200,-460.0,0.00021369,2]
[375780095,1753743046210,-1152.4754033,0.00021452,2]
[375780097,1753743046219,-23663.63177816,0.00021574,2]